[Event "97th Argentine Championship 2022"]
[Site "Barichole"]
[Date "2022.12.01"]
[Round "1.1"]
[White "Perez Ponsa, Federico"]
[Black "Acosta, Pablo Ismael"]
[Result "1/2-1/2"]
[ECO "C42"]
[WhiteElo "2538"]
[BlackElo "2461"]
[Annotator "TA"]
[PlyCount "60"]
[EventDate "2022.12.01"]
[EventCountry "ARG"]
[SourceTitle "playchess.com"]
[Source "ChessBase"]
[SourceQuality "1"]
[TimeControl "40/5400+30:1800+30"]

{[%evp 14,60,24,25,25,23,28,31,31,31,25,2,4,0,22,7,17,6,22,18,9,10,18,0,0,0,0,0,0,0,0,0,-9,-14,-10,-13,-4,-10,-24,-13,-14,-31,-7,-12,0,0,-4,-11,0]} 1. e4 {[%emt 0:00:04]} e5 {[%emt 0:00:07]} 2. Nf3 {[%emt 0:00:21]} Nf6 {[%emt 0:00:06]} 3. Nxe5 {[%emt 0:03:36]} d6 {[%emt 0:00:33]} 4. Nf3 {[%emt 0:00:38]} Nxe4 {[%emt 0:00:20]} 5. Nc3 {[%emt 0:00:30]} Nxc3 {[%emt 0:01:15]} 6. dxc3 {[%emt 0:00:04]} Nc6 {[%emt 0:00:16]} 7. Be3 {[%emt 0:00:50]} Be7 {[%emt 0:00:26]} 8. Qd2 {[%emt 0:01:15]} Bf5 {[%emt 0:00:46] C42: Petroff Defence: 3 Nxe5 and unusual White 3rd moves.} 9. O-O-O {[%emt 0:02:39]} Qd7 {[%emt 0:00:45]} 10. Kb1 {[%emt 0:08:31]} a6 {[%emt 0:08:18] White is slightly better.} 11. Be2 {[%emt 0:06:43] [#]} O-O-O $146 {[%emt 0:01:49]} ({Predecessor:} 11... Bf6 12. Nd4 Nxd4 13. Bxd4 Bxd4 14. Qxd4 O-O 15. g4 Be6 16. Bf3 Qb5 17. a4 Qa5 18. Bxb7 {1-0 (107) Wang,H (2756)-Li,C (2690) China 2019}) 12. h3 {[%emt 0:15:22]} Rde8 {[%emt 0:05:25]} 13. Nd4 {[%emt 0:08:06]} Be4 {[%emt 0:22:41]} 14. Rhe1 {[%emt 0:04:51]} h5 {[%emt 0:05:02]} (14... Bxg2 $2 15. Bg4 $18) 15. Bf1 {[%emt 0:04:35]} Bf6 {[%emt 0:03:09]} 16. Ne2 {[%emt 0:02:24]} (16. Nb3 $5 {[%cal Rb3c5]}) 16... Ne7 {[%emt 0:06:58]} 17. f3 {[%emt 0:11:39]} Bc6 {[%emt 0:04:52]} 18. Nd4 {[%emt 0:05:50]} Nf5 {[%emt 0:03:25]} 19. Bf2 {[%emt 0:03:54]} Nxd4 {[%emt 0:03:37]} 20. Bxd4 {[%emt 0:02:02]} Bxd4 {[%emt 0:02:58]} 21. cxd4 {[%emt 0:02:14] [#] And now d5 would win.} Qf5 {[%emt 0:01:23]} 22. Bd3 {[%emt 0:02:06]} Qf6 {[%emt 0:01:01]} 23. Be4 {[%emt 0:03:31]} Bxe4 {[%emt 0:07:24]} (23... d5 $5 24. Bd3 $8 Kb8 $11) 24. fxe4 {[%emt 0:00:53]} Re7 {[%emt 0:02:58]} 25. Re2 {[%emt 0:03:29]} Rhe8 {[%emt 0:00:34]} 26. Rde1 {[%emt 0:00:08]} Qh4 {[%emt 0:01:21][%cal Re7e4]} 27. Qd3 {[%emt 0:02:46]} g6 {[%emt 0:03:36][%cal Of7f5]} (27... Rxe4 $5 {[%cal Rh4e1]} 28. g3 Rxe2 29. Rxe2 Qd8 $11) 28. a3 {[%emt 0:00:47] The position is equal.} Re6 {[%emt 0:00:37]} 29. Ka2 {[%emt 0:01:36]} Qd8 {[%emt 0:03:55]} 30. Re3 {[%emt 0:01:13]} Qh4 {[%emt 0:09:53] Weighted Error Value: White=0.04 (flawless) /Black=0.03 (flawless)} 1/2-1/2

[Event "97th Argentine Championship 2022"]
[Site "Barichole"]
[Date "2022.12.01"]
[Round "1.2"]
[White "Peralta, Fernando"]
[Black "Pichot, Alan"]
[Result "1-0"]
[ECO "D24"]
[WhiteElo "2587"]
[BlackElo "2637"]
[Annotator "TA"]
[PlyCount "83"]
[EventDate "2022.12.01"]
[EventCountry "ARG"]
[SourceTitle "playchess.com"]
[Source "ChessBase"]
[SourceQuality "1"]
[TimeControl "40/5400+30:1800+30"]

{[%evp 9,83,30,37,40,39,36,39,38,40,43,62,22,25,16,24,14,23,18,56,46,41,54,56,51,65,49,81,52,84,56,139,104,131,115,125,86,122,114,118,84,88,72,127,122,206,134,171,141,178,175,197,196,223,220,344,366,337,316,301,285,281,270,289,241,241,0,259,223,575,568,813,808,908,903,891,877]} 1. d4 {[%emt 0:00:03]} Nf6 {[%emt 0:00:05]} 2. c4 {[%emt 0:00:07]} e6 {[%emt 0:00:05]} 3. Nf3 {[%emt 0:00:08]} d5 {[%emt 0:00:06]} 4. Nc3 {[%emt 0:00:07]} dxc4 {[%emt 0:00:06]} 5. e4 {[%emt 0:00:31][%cal Be2e4,Be4e5][%mdl 32]} b5 {[%emt 0:00:48]} 6. e5 {[%emt 0:00:17] Against a6. D24: Queen's Gambit Accepted: 3 Nf3 Nf6 4 Nc3.} Nd5 {[%emt 0:00:05]} 7. Nxb5 {[%emt 0:00:05]} Nb6 {[%emt 0:00:03]} 8. Be2 {[%emt 0:01:58] White is slightly better.} Nc6 {[%emt 0:00:15]} 9. Be3 {[%emt 0:00:15]} Be7 {[%emt 0:03:01]} 10. a3 {[%emt 0:00:42] White is more active.} Bb7 {[%emt 0:02:12]} 11. Qc2 {[%emt 0:00:32]} Na5 {[%emt 0:00:18]} 12. Nc3 {[%emt 0:01:19]} Qd7 {[%emt 0:00:54]} 13. O-O {[%emt 0:00:13]} f5 {[%emt 0:04:16]} (13... O-O {feels hotter.} 14. Nd2 Rab8 15. Rfe1 Rfd8) 14. exf6 {[%emt 0:00:37]} gxf6 {[%emt 0:00:07]} 15. Nd2 {[%emt 0:00:21]} O-O-O {[%emt 0:05:57]} 16. Bf3 {[%emt 0:00:23]} Bxf3 {[%emt 0:06:59]} 17. Nxf3 {[%emt 0:00:08]} Rhg8 {[%emt 0:00:22]} 18. Rad1 {[%emt 0:04:23] [#]} h5 $146 {[%emt 0:11:45]} ({Predecessor:} 18... Qc6 19. Qe2 Nd5 20. g3 Bd6 21. Bd2 Rde8 22. Rc1 Nb3 23. Rc2 Nb6 24. Ne4 Rg6 {1-0 (49) Martirosyan,H (2621)-Ivic,V (2606) Warsaw 2021}) 19. Rfe1 {[%emt 0:09:37]} h4 {[%emt 0:06:59]} (19... Nb3 $14) 20. h3 {[%emt 0:04:49]} Bd6 {[%emt 0:14:09]} 21. Kh1 {[%emt 0:02:28]} ({Resist} 21. Nxh4 Kb8 $16) 21... Kb8 {[%emt 0:13:49]} 22. Qe2 {[%emt 0:07:27]} Qc6 {[%emt 0:05:35]} 23. Bc1 {[%emt 0:08:48]} ({Much less strong is} 23. Nxh4 Rh8 24. Nf3 Nb3 $14) 23... Rde8 {[%emt 0:02:07]} 24. Qe4 {[%emt 0:04:05]} Nd5 {[%emt 0:00:27]} 25. Nxd5 {[%emt 0:25:56]} (25. Qh7 {is interesting.} Rh8 26. Qg6 Rhg8 27. Qf7) 25... exd5 {[%emt 0:00:12]} ({Black should play} 25... f5 26. Qxh4 Qxd5) 26. Qxh4 $16 {[%emt 0:05:40]} Nb3 {[%emt 0:06:30]} (26... Be7 $16) 27. Bf4 {[%emt 0:06:35]} Rh8 {[%emt 0:08:43]} 28. Qg4 {[%emt 0:00:14]} Kb7 {[%emt 0:04:35][%cal Of6f5]} 29. Bxd6 {[%emt 0:01:37]} Qxd6 {[%emt 0:00:05]} 30. Qf5 {[%emt 0:00:16]} a6 {[%emt 0:00:33]} 31. g3 {[%emt 0:01:33]} Ka7 {[%emt 0:03:36]} (31... Ref8 $142 32. h4 Rf7) 32. Kg2 $18 {[%emt 0:00:12]} Qc6 {[%emt 0:00:41]} 33. h4 {[%emt 0:06:09][%cal Bh3h4,Bh4h5,Bh5h6][%mdl 32]} Re4 {[%emt 0:00:16]} 34. h5 {[%emt 0:00:26]} a5 {[%emt 0:00:28]} 35. a4 {[%emt 0:02:28]} Kb7 {[%emt 0:00:59]} 36. Kf1 {[%emt 0:03:09]} Ka7 {[%emt 0:00:32]} 37. Kg2 {[%emt 0:00:45]} Kb7 {[%emt 0:00:07]} 38. Qg6 {[%emt 0:00:48]} Ka7 $2 {[%emt 0:01:11] [#]} (38... Ree8 39. h6 Reg8) 39. h6 {[%emt 0:01:07] White is clearly winning.} Qd7 {[%emt 0:00:30]} 40. Qxf6 {[%emt 0:00:00]} Qe8 {[%emt 0:00:00]} 41. Rxe4 {[%emt 0:05:43]} dxe4 {[%emt 0:00:28]} 42. Ne5 {[%emt 0:00:19] Weighted Error Value: White=0.20 (precise) /Black=0.33} 1-0

[Event "97th Argentine Championship 2022"]
[Site "Barichole"]
[Date "2022.12.01"]
[Round "1.3"]
[White "Fiorito, Joaquin"]
[Black "Mareco, Sandro"]
[Result "0-1"]
[ECO "B46"]
[WhiteElo "2344"]
[BlackElo "2619"]
[Annotator "TA"]
[PlyCount "60"]
[EventDate "2022.12.01"]
[EventCountry "ARG"]
[SourceTitle "playchess.com"]
[Source "ChessBase"]
[SourceQuality "1"]
[TimeControl "40/5400+30:1800+30"]

{[%evp 17,60,24,20,10,16,-11,0,0,0,0,-2,-9,0,-109,-103,-105,-107,-103,109,125,224,220,208,207,186,-72,-61,-72,-66,-66,-70,-78,-72,-135,-68,-482,-470,-466,-469,-599,-601,-621,-606,-1094,-1081]} 1. e4 {[%emt 0:00:04]} c5 {[%emt 0:00:19]} 2. Nf3 {[%emt 0:00:07]} e6 {[%emt 0:00:05]} 3. d4 {[%emt 0:00:56]} cxd4 {[%emt 0:00:05]} 4. Nxd4 {[%emt 0:00:06]} Nc6 {[%emt 0:00:02]} 5. Nc3 {[%emt 0:01:29]} a6 {[%emt 0:00:05]} 6. Nxc6 {[%emt 0:08:01]} bxc6 {[%emt 0:00:05]} 7. Bd3 {[%emt 0:00:23]} d5 {[%emt 0:00:05]} 8. O-O {[%emt 0:00:35]} Nf6 {[%emt 0:00:03]} 9. Qe2 {[%emt 0:03:47]} Be7 {[%emt 0:00:18]} 10. Bd2 {[%emt 0:10:03] B46: Sicilian: Taimanov: 5 Nc3 a6.} O-O {[%emt 0:00:08]} 11. Kh1 {[%emt 0:11:01]} Bb7 {[%emt 0:12:23] [#]} 12. Rae1 $146 {[%emt 0:14:48] The position is equal.} ({Predecessor:} 12. f4 c5 13. e5 c4 14. Bxc4 dxc4 15. exf6 Bxf6 16. Be3 Qc7 17. Rad1 Rad8 18. Kg1 {0-1 (53) Samunenkov,I (2433)-Svane,F (2521) Chess.com INT 2022}) 12... Re8 {[%emt 0:00:13]} 13. e5 {[%emt 0:12:18] Against c5} Nd7 {[%emt 0:00:08]} 14. f4 {[%emt 0:02:42]} Bf8 {[%emt 0:10:17]} 15. f5 {[%emt 0:09:34]} (15. Na4 $11 {remains equal.}) 15... exf5 $17 {[%emt 0:05:46]} 16. Rxf5 {[%emt 0:01:24]} g6 {[%emt 0:10:07]} 17. Qf3 {[%emt 0:01:13]} Bc8 $2 {[%emt 0:05:23]} (17... Re7 $17 {and life is bright.} 18. Qg3 Bg7) 18. Rf1 $1 $16 {[%emt 0:06:23]} (18. Rxf7 $2 Nxe5 19. Rxf8+ (19. Rxe5 $2 Rxe5 20. Rf6 Re6 $19) 19... Rxf8 $19) 18... Bg7 {[%emt 0:11:04]} (18... Nc5 $16 {was worth a try.} 19. Bg5 (19. Rxf7 Be6 $11) 19... Bxf5 20. Bxd8 Nxd3) 19. Bg5 $18 {[%emt 0:00:19]} (19. Rxf7 Nxe5 20. Rxg7+ Kxg7 $19) 19... Qc7 {[%emt 0:00:08]} 20. Rxf7 {[%emt 0:00:15]} Qxe5 {[%emt 0:00:14] [#]} 21. Bf4 $2 {[%emt 0:10:29]} (21. Na4 $1 $18) 21... Qe6 $1 $36 {[%emt 0:00:56][%mdl 2048] Inhibits b3. Black has good play.} 22. Bg3 {[%emt 0:00:07] [#]} Ne5 $1 {[%emt 0:02:52]} 23. Bxe5 {[%emt 0:00:07]} Qxe5 {[%emt 0:00:04]} 24. Rf4 {[%emt 0:04:17][%cal Oc3e4]} Be6 {[%emt 0:00:57]} 25. Na4 {[%emt 0:00:36] [#]} (25. Qf2 $142) 25... Bh6 {[%emt 0:01:51] A strong pair of Bishops.} (25... g5 $1 $17 {[%cal Rg5f4]} 26. Rb4 Rf8) 26. Rh4 {[%emt 0:01:37][%mdl 8192]} ({White has to play} 26. Rf6 $1 $15) 26... Rf8 $19 {[%emt 0:00:24] Black is clearly winning.} 27. Qd1 {[%emt 0:00:15]} Rxf1+ {[%emt 0:00:25]} 28. Qxf1 {[%emt 0:00:02]} Rf8 {[%emt 0:00:10]} 29. Qd1 {[%emt 0:00:02]} Bg5 {[%emt 0:01:40]} 30. Rxh7 {[%emt 0:00:18]} Bg4 {[%emt 0:00:23] Black used his chance.   Weighted Error Value: White=0.64/Black=0.19 (very precise)} ({Worse is} 30... Kxh7 31. Qh5+ (31. Bxa6 $2 {is the wrong capture.} Rf2 $19) 31... Kg8 32. Qxg6+ Qg7 33. Qxe6+ Qf7 34. Qxf7+ (34. Nc5 Qxe6 35. Nxe6 Re8 $17) 34... Kxf7 35. b3 $17) 0-1

[Event "97th Argentine Championship 2022"]
[Site "Barichole"]
[Date "2022.12.01"]
[Round "1.4"]
[White "Gaitan, Juan Manuel"]
[Black "Flores, Diego"]
[Result "0-1"]
[ECO "E04"]
[WhiteElo "2347"]
[BlackElo "2547"]
[Annotator "TA"]
[PlyCount "73"]
[EventDate "2022.12.01"]
[EventCountry "ARG"]
[SourceTitle "playchess.com"]
[Source "ChessBase"]
[SourceQuality "1"]
[TimeControl "40/5400+30:1800+30"]

{[%evp 17,73,12,44,10,36,37,23,32,75,53,114,48,48,87,279,266,271,0,0,0,0,0,0,0,0,0,0,0,0,0,0,-84,-52,-52,-52,-56,-55,-46,-62,-64,-66,-65,-66,-62,-38,-74,-31,-31,0,0,0,-54,-3,-159,0,-22,-26,-913]} 1. d4 {[%emt 0:00:27]} d5 {[%emt 0:01:08][%cal Bd7d5,Bd5c4][%mdl 32]} 2. c4 {[%emt 0:01:31]} e6 {[%emt 0:01:37]} 3. Nf3 {[%emt 0:00:10]} Nf6 {[%emt 0:00:54]} 4. g3 {[%emt 0:00:11]} a6 {[%emt 0:00:45]} 5. Bg2 {[%emt 0:09:40]} dxc4 {[%emt 0:00:55]} 6. O-O {[%emt 0:00:45]} b5 {[%emt 0:01:11]} 7. Ne5 {[%emt 0:03:23]} Nd5 {[%emt 0:00:19]} 8. a4 {[%emt 0:07:35]} Bb7 {[%emt 0:01:58]} 9. b3 {[%emt 0:15:03]} cxb3 {[%emt 0:05:19]} (9... c3 $5 {[%cal Rb5b4]}) 10. Qxb3 {[%emt 0:00:39] E04: Open Catalan: 5 Nf3.} (10. axb5 {simplifies} axb5 11. Rxa8 Bxa8 12. Qxb3 c6 13. e4) 10... b4 {[%emt 0:04:31]} (10... Nc6 {simplifies} 11. Nxc6 Bxc6 12. axb5 axb5 13. Rxa8 Qxa8 14. e4 Nb6) 11. a5 {[%emt 0:04:53]} Nd7 {[%emt 0:06:21]} 12. Qa4 {[%emt 0:12:12] White has an edge.} Bd6 {[%emt 0:08:57]} 13. e4 {[%emt 0:08:07]} Bxe5 {[%emt 0:27:33]} ({Black should try} 13... Ne7 $14) 14. exd5 {[%emt 0:07:48]} (14. dxe5 $16 Ne7 15. Qxb4) 14... Bxd4 $14 {[%emt 0:02:21]} 15. dxe6 $1 {[%emt 0:00:10][%mdl 64] Pin} O-O $2 {[%emt 0:08:58]} (15... Bxg2 $16 16. exd7+ Qxd7 17. Kxg2 Bxa1 18. Re1+ Kd8) 16. Bxb7 $18 {[%emt 0:02:00]} (16. Qxd7 $2 Bxg2 17. Kxg2 Bxa1 $19) 16... Nc5 {[%emt 0:00:42] [#]} 17. Qxb4 {[%emt 0:00:27]} (17. e7 $1 $18 {[%cal Re7d8]} Qxe7 18. Qxb4) 17... fxe6 $11 {[%emt 0:00:48] Threatens to win with ...Rb8.} 18. Ra2 {[%emt 0:17:03][%cal Ba1a2,Ba2d2,Bd2d4,Bd4c4][%mdl 32]} Rb8 $36 {[%emt 0:01:31][%mdl 2048] [#] Black is more active.} 19. Rd2 $146 {[%emt 0:00:02]} ({Predecessor:} 19. Qc4 Rxb7 20. Ba3 Qd5 21. Qxd5 exd5 22. Rc2 Rxf2 23. Bxc5 Rxf1+ 24. Kxf1 Rxb1+ 25. Kg2 Rb2 {0-1 (27) Santarius,E (2361)-Levine,J (2036) Redmond 2021}) 19... Rxb7 {[%emt 0:00:16]} 20. Qxd4 {[%emt 0:02:06]} Qxd4 {[%emt 0:00:09]} 21. Rxd4 {[%emt 0:00:08] Strongly threatening Be3.} Rxb1 {[%emt 0:00:08]} 22. Ba3 {[%emt 0:01:41]} Rb5 {[%emt 0:00:40]} 23. Rc4 {[%emt 0:00:32]} Rf5 {[%emt 0:00:21]} 24. Rfc1 {[%emt 0:00:48]} (24. Rd1 $11 {remains equal.} h5 25. Rd8+ Kf7 26. Bb4) 24... Nb3 {[%emt 0:03:28] Black is more active.} 25. Rd1 {[%emt 0:00:31]} Rfd5 {[%emt 0:02:59] Inhibits Rd8+.} (25... Rxa5 26. Rd8+ Kf7 27. Rxc7+ Kg6 28. Bb2 $16) 26. Rxd5 {[%emt 0:02:08]} exd5 {[%emt 0:00:08]} (26... Rxd5 27. Rxc7 e5 28. Rc8+ Kf7 29. Kg2 $11) 27. Rxc7 {[%emt 0:00:03]} Rxa5 $15 {[%emt 0:00:56][%mdl 4096] Endgame KRB-KRN} 28. Bb2 {[%emt 0:02:34]} d4 {[%emt 0:00:18] And now ...Ra2 would win.} 29. Rd7 {[%emt 0:00:07]} Ra4 {[%emt 0:01:06]} 30. Kg2 {[%emt 0:00:14]} Kf8 {[%emt 0:02:21]} 31. h4 {[%emt 0:00:08]} h5 {[%emt 0:01:04]} 32. Kf3 {[%emt 0:00:22]} Ke8 {[%emt 0:01:24]} 33. Rb7 {[%emt 0:00:25]} (33. Rxg7 $2 Ra2 34. Bxd4 (34. Rg8+ $2 Kf7 $19) 34... Nxd4+ $17) 33... Nd2+ {[%emt 0:04:24]} 34. Kf4 {[%emt 0:01:00]} (34. Ke2 $11 Ne4 35. Rc7) 34... a5 {[%emt 0:03:06]} (34... Nc4 $15 35. Kf3 (35. Bxd4 Na5 $17) (35. Rb8+ Kd7 $17) 35... d3) 35. Ke5 $2 {[%emt 0:00:20]} (35. Bc1 $1 $11 Nc4 36. Rb8+ Kd7 37. Ke4) 35... Kd8 $2 {[%emt 0:01:50]} (35... d3 $17 36. Bc3 Nf3+ 37. Kf5 (37. Ke6 $2 Re4+ 38. Kf5 Rg4 $19) 37... Rg4) 36. Ke6 {[%emt 0:00:44] Black must now prevent Rd7+.} (36. Bxd4 $2 {too greedy.} Nf3+ 37. Ke6 Nxd4+ $19) (36. Bc1 $5 {[%cal Rc1d2]} Kc8 37. Rb5 $11 (37. Rxg7 Nb3 $11)) 36... Kc8 {[%emt 0:01:11]} 37. Kd5 $2 {[%emt 0:02:19][%mdl 8192] What a bad dream for White.   Weighted Error Value: White=0.33/Black=0.32} 0-1

[Event "97th Argentine Championship 2022"]
[Site "Barichole"]
[Date "2022.12.01"]
[Round "1.5"]
[White "Krysa, Leandro"]
[Black "Paveto, Kevin"]
[Result "1-0"]
[ECO "D85"]
[WhiteElo "2524"]
[BlackElo "2431"]
[Annotator "TA"]
[PlyCount "63"]
[EventDate "2022.12.01"]
[EventCountry "ARG"]
[SourceTitle "playchess.com"]
[Source "ChessBase"]
[SourceQuality "1"]
[TimeControl "40/5400+30:1800+30"]

{[%evp 15,63,-4,-15,0,0,-20,-28,-54,-27,-47,-25,-44,-40,-44,0,0,0,0,0,0,0,0,25,0,0,0,73,83,87,81,533,520,504,529,525,530,511,522,29985,29986,29986,29987,29976,386,389,382,366,354,358,316]} 1. Nf3 {[%emt 0:00:07]} Nf6 {[%emt 0:00:29]} 2. c4 {[%emt 0:00:27]} g6 {[%emt 0:00:47]} 3. d4 {[%emt 0:00:34]} Bg7 {[%emt 0:00:08]} 4. Nc3 {[%emt 0:00:15]} d5 {[%emt 0:00:20]} 5. cxd5 {[%emt 0:00:20]} Nxd5 {[%emt 0:00:08]} 6. e4 {[%emt 0:00:11]} Nxc3 {[%emt 0:00:09]} 7. bxc3 {[%emt 0:00:07]} c5 {[%emt 0:00:44]} 8. Rb1 {[%emt 0:00:28] 8.h3 is the modern continuation.} O-O {[%emt 0:00:17]} 9. h3 {[%emt 0:00:15] D85: Exchange Grünfeld: Unusual White 7th moves and lines with 7 Nf3.} b6 {[%emt 0:07:57]} 10. Bc4 {[%emt 0:00:25] Strongly threatening Bd5.} Bb7 {[%emt 0:02:42] [#] Inhibits Bd5.} 11. d5 $146 {[%emt 0:00:44] Black has an edge.} ({Predecessor:} 11. Qe2 Nc6 12. dxc5 Bxc3+ 13. Kf1 Na5 14. Bh6 Bg7 15. Bxg7 Kxg7 16. cxb6 Nxc4 17. Qxc4 axb6 {½-½ (75) Winterberg,L (1925)-Wissemann,A (2088) Bad Homburg 2009}) 11... Bxc3+ {[%emt 0:05:01]} 12. Bd2 {[%emt 0:00:12]} Bg7 {[%emt 0:00:02]} 13. Qe2 {[%emt 0:01:48]} Qc8 {[%emt 0:02:30]} 14. h4 {[%emt 0:01:54]} Ba6 {[%emt 0:01:19]} (14... h6 {simplifies} 15. Rc1 Ba6 16. O-O Bxc4 17. Rxc4 e6) 15. h5 $1 {[%emt 0:01:30]} e6 {[%emt 0:15:19] White must now prevent ...exd5.} 16. hxg6 {[%emt 0:17:26]} hxg6 {[%emt 0:00:56]} 17. d6 $1 {[%emt 0:05:28] And now e5 would win.} Bxc4 {[%emt 0:28:36]} 18. Qxc4 {[%emt 0:00:30] Threatens to win with e5.} e5 {[%emt 0:00:49]} 19. Nh4 {[%emt 0:21:34][%cal Bf3h4,Bh4g6,Bg6e7][%mdl 32]} Nc6 {[%emt 0:13:00] Hoping for ...Rd8.} 20. Nxg6 {[%emt 0:16:54][%cal Ob1b3] Rb3! is the strong threat.} Rd8 {[%emt 0:02:48]} (20... Re8 $1 $11 {remains equal.}) 21. Rb3 $1 $40 {[%emt 0:03:37][%cal Bb1b3,Bb3g3,Bg3g7,Bg7f7][%mdl 160] Intending Rg3 and mate. White has strong attack. White has more active pieces.} Rxd6 {[%emt 0:12:15]} 22. Rg3 {[%emt 0:01:25][%cal Oh1h8]} (22. Rf3 $2 Qb7 $19) 22... Qb7 $2 {[%emt 0:01:30][%mdl 8192] Loses the game.} (22... Qe6 $16 23. Rh8+ Bxh8 24. Nf4+ (24. Nxe5+ $2 Kf8 $19) 24... Bg7 25. Nxe6 Rxe6) 23. Bh6 $1 $18 {[%emt 0:07:07] Bxg7 would kill now.} Rad8 {[%emt 0:03:29] [#]} 24. Ne7+ $1 {[%emt 0:06:34][%mdl 576]} Qxe7 {[%emt 0:00:02]} 25. Rxg7+ {[%emt 0:05:44]} Kh8 {[%emt 0:00:00]} 26. Rxf7 {[%emt 0:02:14] White wants to mate with Bg7+.} (26. Qxf7 $2 {too greedy.} Rd1+ 27. Ke2 Qxf7 28. Rxf7 Rxh1 $19) (26. Bg5+ Kxg7 27. Bxe7 Nxe7 $11) 26... Rd1+ {[%emt 0:01:31]} 27. Ke2 {[%emt 0:00:05]} Rxh1 {[%emt 0:00:31]} 28. Bg7+ {[%emt 0:01:49]} Kh7 {[%emt 0:00:01]} 29. Bf6+ $2 {[%emt 0:01:28]} (29. Bxe5+ {mates} Kh6 30. Rxe7 Nxe7 31. Qf7 Rg8 32. Bf4+ Rg5 33. Qxe7 Rhh5 34. Qf6+ Kh7 35. Bxg5) 29... Kg6 {[%emt 0:00:09] White is winning.} 30. Bxe7 {[%emt 0:00:35] White threatens Qe6+ and mate. The board is on fire.} Nd4+ {[%emt 0:00:05] [#]} 31. Kd2 $1 {[%emt 0:00:45]} Nb3+ {[%emt 0:01:52] [#]} 32. Kc3 $1 {[%emt 0:01:08] Weighted Error Value: White=0.20 (precise) /Black=0.35} ({Don't blunder} 32. Ke3 $2 Re1+ 33. Kf3 (33. Qe2 $2 Rxe2+ 34. Kxe2 Rd2+ 35. Ke1 Kxf7 $19) 33... Nd2+ 34. Kg3 Nxc4 $19) 1-0